bitfinex-derivatives/quotes_ETHF0:USTF0_20251211
["timestamp","ask_amount","ask_price","bid_price","bid_amount"]
[1765485624106,5.3208,3212.9,3212.8,5.37956589]
[1765485624798,2.6195,3212.9,3212.8,5.37956589]
[1765485625313,4.6779,3213.5,3212.8,5.37956589]
[1765485625598,8.5286,3213.5,3213.4,2.7312]
[1765485625807,3.2078,3213.5,3213.4,5.3756]
[1765485627197,5.8273,3213.5,3213.4,5.3756]
[1765485627594,2.6195,3213.3,3213.2,5.53119]
[1765485628410,5.3208,3213.3,3213.2,2.88679]
[1765485628710,4.74,3213.5,3212.8,5.37956589]
[1765485629101,3.2078,3213.5,3213.4,5.3756]
[1765485629405,3.2078,3213.9,3213.8,5.3756]
[1765485629804,0.00328808,3214.0,3213.9,5.3756]
[1765485630303,2.62278808,3214.0,3213.9,2.7312]
[1765485630504,0.00328808,3214.0,3213.9,5.3756]
[1765485631206,1.66597664,3215.5,3214.2,5.3756]
[1765485631505,5.3208,3216.4,3216.3,2.7312]
[1765485631904,5.3208,3216.4,3216.0,1.52126664]
[1765485632095,2.6195,3216.4,3216.3,2.7312]
[1765485632300,5.32484327,3216.4,3216.3,2.73364661]
[1765485632806,0.00404327,3216.4,3216.3,8.74128661]
[1765485633910,5.32484327,3216.4,3216.3,3.36568661]
[1765485636906,0.00404327,3216.4,3216.3,8.74128661]
[1765485637308,5.3208,3216.1,3216.0,0.00466664]
[1765485637502,7.64577291,3216.1,3216.0,0.00466664]
[1765485637707,3.21184327,3216.4,3216.3,5.3756]
[1765485637708,5.83134327,3216.4,3216.3,5.3756]
[1765485637908,0.00404327,3216.4,3216.3,5.3756]
[1765485638302,5.32484327,3216.4,3216.0,4.92831664]
[1765485638505,5.32484327,3216.4,3216.3,0.00371392]
[1765485638706,2.62354327,3216.4,3216.3,5.37931392]
[1765485639109,5.32484327,3216.4,3216.3,2.73491392]
[1765485639306,5.32484327,3216.4,3216.3,0.00371392]
[1765485639707,5.32484327,3216.4,3216.3,2.73491392]
[1765485640004,5.32484327,3216.4,3216.3,0.00371392]
[1765485640711,5.32484327,3216.4,3216.3,2.73491392]
[1765485640907,5.32484327,3216.4,3216.3,0.00371392]
[1765485641103,5.32484327,3216.4,3216.3,2.73491392]
[1765485641508,5.32484327,3216.4,3216.3,0.00371392]
[1765485642005,3.2078,3216.8,3216.7,5.53102]
[1765485642209,3.2078,3218.1,3218.0,7.09136]
[1765485642604,8.3526,3218.1,3217.7,0.00465896]
[1765485642813,5.1448,3217.8,3217.7,0.00465896]
[1765485643112,5.14766869,3217.8,3217.7,0.00465896]
[1765485643311,2.57526869,3217.8,3217.7,0.00465896]
[1765485643712,2.57526869,3217.8,3217.7,5.38025896]
[1765485643713,0.00286869,3217.8,3217.7,5.38025896]
[1765485644212,5.32366869,3217.8,3217.7,0.00465896]
[1765485645209,5.3208,3217.1,3217.0,1.5604]
[1765485645511,2.6195,3217.1,3217.0,1.5604]
[1765485646011,2.32497291,3217.6,3217.0,6.936]
[1765485646216,0.00460815,3217.4,3217.3,5.3756]
[1765485647512,5.3208,3217.2,3217.1,0.1554]
[1765485647909,0.00460815,3217.4,3217.1,5.531]
[1765485648318,5.3208,3216.9,3216.8,3.2078]
[1765485649117,5.31677291,3217.0,3216.9,2.9101]
[1765485649312,2.9918,3216.9,3216.8,3.2078]
[1765485649518,5.772,3216.9,3216.8,3.2078]
[1765485649916,0.00460815,3217.4,3217.3,5.6226]
[1765485650115,0.00460815,3217.4,3217.3,5.77799]
[1765485652322,0.00286869,3217.8,3217.7,5.77797]
[1765485652511,0.00286869,3217.8,3217.7,8.98577]
[1765485653323,6.1996,3218.9,3218.4,1.7125]
[1765485653518,6.1996,3218.9,3218.4,4.9203]
[1765485654121,6.1996,3218.9,3218.7,0.15532]
[1765485654323,6.20271508,3218.9,3218.7,0.15753146]
[1765485654923,2.99491508,3218.9,3218.7,0.15753146]
[1765485655825,0.00311508,3218.9,3218.8,2.9101]
[1765485656219,2.9918,3218.8,3218.7,0.15753146]
[1765485656418,5.772,3218.8,3218.7,0.15753146]
[1765485657419,6.6671809,3218.8,3218.7,0.15753146]
[1765485657821,3.8869809,3218.8,3218.7,0.15753146]
[1765485658017,0.8951809,3218.8,3218.7,5.78013146]
[1765485658218,3.8814809,3218.8,3218.7,3.06763146]
[1765485658425,0.8951809,3218.8,3218.7,5.78013146]
[1765485659019,3.8523809,3218.8,3218.7,5.78013146]
[1765485659218,3.8523809,3218.8,3218.7,3.06763146]
[1765485659420,6.6325809,3218.8,3218.7,0.15753146]
[1765485660116,0.8951809,3218.8,3218.7,5.78013146]
[1765485660418,0.00311508,3218.9,3218.8,5.77792]
[1765485660618,0.90128025,3218.9,3218.8,8.98572]
[1765485661221,0.90273748,3218.9,3218.8,8.98572]
[1765485662328,0.00311508,3218.9,3218.8,8.98572]
[1765485662720,1.65091204,3220.0,3219.8,5.6226]
[1765485662923,2.21905364,3220.3,3219.6,0.15528]
[1765485662924,2.8417,3219.8,3219.7,6.1179]
[1765485663125,6.52057143,3219.8,3219.7,3.2078]
[1765485663629,6.52380363,3219.8,3219.7,3.2078]
[1765485664031,0.90190363,3219.8,3219.7,8.98568]
[1765485664928,3.68700363,3219.8,3219.7,8.98568]
[1765485665118,0.90190363,3219.8,3219.7,8.98568]
[1765485666529,3.63e-06,3219.8,3219.7,8.98568]
[1765485668126,2.99180363,3219.8,3219.7,8.98568]
[1765485668332,3.63e-06,3219.8,3219.7,3.36308]
[1765485670726,5.77200363,3219.8,3219.7,3.36308]
[1765485670927,2.99180363,3219.8,3219.7,6.27318]
[1765485671231,5.77200363,3219.8,3219.7,6.27318]
[1765485672034,2.99180363,3219.8,3219.7,8.98568]
[1765485672230,3.63e-06,3219.8,3219.7,8.98568]
[1765485672528,3.63e-06,3219.8,3219.7,6.07558]
[1765485673536,5.77200363,3219.8,3219.7,3.36308]
[1765485673732,5.77200363,3219.8,3219.7,6.27318]
[1765485674234,5.77200363,3219.8,3219.7,3.36308]
[1765485674836,2.99180363,3219.8,3219.7,5.88988]
[1765485675028,3.63e-06,3219.8,3219.7,8.43138]
[1765485675425,5.44740363,3219.8,3219.7,3.36308]
[1765485676033,2.78610363,3219.8,3219.7,5.88988]
[1765485676230,5.44740363,3219.8,3219.7,5.88988]
[1765485676632,5.44740363,3219.8,3219.7,3.36308]
[1765485677431,5.44740363,3219.8,3219.7,3.2078]
[1765485677839,7.09831567,3219.8,3219.7,3.2078]
[1765485678433,7.98080093,3219.8,3219.7,3.2078]
[1765485678731,2.7861,3219.1,3219.0,10.14391]
[1765485678932,3.66858526,3219.1,3219.0,10.14391]
[1765485679238,0.88248526,3219.1,3219.0,10.08541]
[1765485680346,1.66233444,3219.8,3219.7,5.2031]
[1765485680540,2.65880363,3219.8,3219.7,5.2031]
[1765485680742,6.96590029,3219.8,3219.7,2.7201]
[1765485681040,5.3005,3219.6,3219.5,1.6337]
[1765485681342,5.3005,3219.6,3219.5,4.3538]
[1765485681543,2.6588,3219.6,3219.5,6.8368]
[1765485682449,5.3005,3219.6,3219.5,1.6337]
[1765485682744,5.3005,3219.5,3219.4,3.2078]
[1765485682937,2.6588,3219.5,3219.4,8.4109]
[1765485683137,2.6588,3219.7,3219.6,2.7201]
[1765485683339,5.3005,3219.6,3219.5,4.3538]
[1765485683644,5.3005,3219.5,3219.4,3.2078]
[1765485684144,2.6588,3219.5,3219.4,8.4109]
[1765485684344,5.3005,3219.5,3219.4,3.2078]
[1765485684738,4.32426876,3219.8,3219.7,2.7201]
[1765485685044,1.66546513,3220.4,3219.5,1.6337]
[1765485685248,2.6588,3220.7,3220.6,5.2031]
[1765485685443,2.6588,3220.6,3220.5,6.8368]
[1765485685645,1.66546513,3221.2,3220.5,10.19984]
[1765485685937,2.6588,3220.6,3220.5,10.19984]
[1765485686137,0.00316008,3220.6,3220.5,10.19984]
[1765485687248,5.30366008,3220.6,3220.5,7.71684]
[1765485687541,2.66196008,3220.6,3220.5,7.71684]
[1765485687745,5.30366008,3220.6,3220.5,0.15524]
[1765485688247,0.00316008,3220.6,3220.5,6.99204]
[1765485688446,0.00316008,3220.6,3220.5,10.19984]
[1765485689541,3.2078,3221.2,3221.1,5.2031]
[1765485689741,5.8666,3221.6,3221.5,4.3538]
[1765485690140,8.5083,3221.6,3221.0,1.6337]
[1765485690545,5.3005,3221.2,3221.1,0.15521]
[1765485691244,3.21162918,3221.6,3221.1,0.15521]
[1765485691245,5.87042918,3221.6,3221.5,4.3538]
[1765485691445,5.87042918,3221.6,3221.5,6.8368]
[1765485691746,0.00382918,3221.6,3221.5,6.99199]
[1765485693252,2.6588,3222.1,3222.0,1.6337]
[1765485693554,5.3005,3221.9,3221.8,3.36297]
[1765485693853,5.3005,3221.9,3221.8,0.15517]
[1765485694055,5.3005,3221.9,3221.8,3.36297]
[1765485694249,0.00249511,3221.9,3221.8,8.56607]
[1765485694749,2.66129511,3221.9,3221.8,8.56607]
[1765485694953,0.00249511,3221.9,3221.8,8.56607]
[1765485695356,3.2078,3222.7,3222.0,1.6337]
[1765485695548,3.2078,3222.7,3222.2,3.2078]
[1765485695952,2.6588,3222.3,3222.2,5.9279]
[1765485696150,3.2078,3222.7,3222.2,8.4109]
[1765485696450,3.21054947,3222.7,3222.6,5.2031]
[1765485696654,0.00274947,3222.7,3222.6,5.2031]
[1765485696954,2.66154947,3222.7,3222.6,2.7201]
[1765485697154,2.66154947,3222.7,3222.2,3.36295]
[1765485697155,2.6588,3222.3,3222.2,6.08305]
[1765485697551,0.00274947,3222.7,3222.2,8.56605]
[1765485697954,0.00274947,3222.7,3222.6,2.7201]
[1765485698148,0.00274947,3222.7,3222.6,5.2031]
[1765485698345,5.30324947,3222.7,3222.6,2.7201]
[1765485698552,2.66154947,3222.7,3222.6,2.7201]
[1765485700158,0.00274947,3222.7,3222.6,5.2031]
[1765485701949,5.3005,3222.3,3222.2,3.2078]
[1765485702154,0.00274947,3222.7,3222.2,8.4109]
[1765485703754,5.3005,3222.3,3222.2,5.9279]
[1765485703950,5.3005,3222.3,3222.2,3.2078]
[1765485704256,2.6588,3222.3,3222.2,8.4109]
[1765485704453,5.3005,3222.3,3222.2,3.2078]
[1765485705751,2.6588,3222.3,3222.2,8.4109]
[1765485705957,5.3005,3222.6,3222.5,4.3538]
[1765485706156,5.3005,3222.6,3222.5,1.6337]
[1765485706560,0.00274947,3222.7,3222.0,1.79351896]
[1765485706561,5.3005,3222.3,3222.0,1.79351896]
[1765485706760,2.6588,3222.1,3222.0,6.99661896]
[1765485707565,5.3005,3222.1,3222.0,1.79351896]
[1765485707763,5.3005,3222.1,3222.0,4.51361896]
[1765485708162,2.6588,3222.1,3222.0,4.51361896]
[1765485708364,2.6588,3222.1,3222.0,6.99661896]
[1765485708763,5.3005,3222.1,3222.0,1.63835896]
[1765485709169,2.6588,3222.1,3222.0,6.40145896]
[1765485709856,5.1944,3222.1,3222.0,6.40145896]
[1765485710062,5.1944,3222.1,3222.0,1.63835896]
[1765485710263,5.1944,3222.1,3222.0,0.00465896]
[1765485712365,5.1944,3222.1,3222.0,3.75505896]
[1765485712574,2.6588,3222.1,3222.0,6.15495896]
[1765485712964,3.2078,3222.5,3222.0,6.15495896]
[1765485713271,4.9969,3222.1,3222.0,6.15495896]
[1765485713867,2.4613,3222.1,3222.0,6.15495896]
[1765485716367,8.2047,3222.5,3222.4,2.3632]
[1765485717973,4.99964947,3222.7,3222.6,2.3632]
[1765485718169,5.87768504,3222.7,3222.6,2.3632]
[1765485718472,4.9969,3222.6,3222.5,3.7504]
[1765485718673,4.9969,3222.6,3222.5,1.3872]
[1765485718971,4.9969,3222.6,3222.5,3.7504]
[1765485719871,4.9969,3222.6,3222.5,6.1503]
[1765485720475,0.2158,3221.1,3221.0,1.39122396]
[1765485720669,3.2078,3221.1,3221.0,6.15432396]
[1765485720977,3.2078,3221.3,3221.2,4.7631]
[1765485721372,0.00465896,3221.6,3221.5,1.3872]
[1765485721675,0.00465896,3221.6,3221.5,6.1503]
[1765485722777,5.00155896,3221.6,3221.5,1.3872]
[1765485722983,5.00155896,3221.6,3221.2,3.2078]
[1765485723668,2.4613,3221.3,3221.2,7.9709]
[1765485723968,0.00465896,3221.6,3221.5,6.1503]
[1765485723969,2.46595896,3221.6,3221.5,6.1503]
[1765485724177,2.46595896,3221.6,3221.5,3.7504]
[1765485724369,2.46595896,3221.6,3221.5,6.1503]
[1765485724569,5.00155896,3221.6,3221.5,3.7504]
[1765485724866,4.9969,3221.3,3221.0,0.00402396]
[1765485725068,4.9969,3221.0,3220.9,0.00465896]
[1765485725267,2.4613,3220.3,3220.2,3.2078]
[1765485725565,4.9969,3220.3,3219.6,3.2078]
[1765485725768,2.4613,3220.3,3220.2,4.7631]
[1765485725974,0.00386092,3220.3,3220.2,4.76572478]
[1765485726175,5.00076092,3220.3,3220.2,2.36582478]
[1765485726374,5.00076092,3220.3,3220.2,0.00262478]
[1765485728269,4.9969,3219.6,3219.2,3.2078]
[1765485728471,3.2078,3219.7,3219.2,7.9709]
[1765485728675,3.2078,3219.7,3219.6,4.7631]
[1765485729076,4.9969,3219.6,3219.2,3.2078]
[1765485729272,3.21245896,3219.7,3219.5,6.1503]
[1765485729472,5.67375896,3219.7,3219.6,2.3632]
[1765485729773,4.9969,3219.6,3219.5,1.3872]
[1765485729974,4.9969,3219.6,3219.5,3.7504]
[1765485730179,4.9969,3219.6,3219.2,3.21022201]
[1765485730676,2.4613,3219.6,3219.5,3.7504]
[1765485730875,4.9969,3219.6,3219.5,1.3872]
[1765485731277,2.4613,3219.6,3219.5,6.1503]
[1765485731477,3.21245896,3219.7,3219.5,6.1503]
[1765485731677,2.4613,3219.6,3219.5,6.1503]
[1765485731878,4.9969,3219.3,3219.2,3.21022201]
[1765485732478,4.9969,3219.3,3219.2,5.57342201]
[1765485732677,7.31297829,3219.3,3219.2,5.57342201]
[1765485732886,7.31297829,3219.3,3219.2,0.00242201]
[1765485733580,2.31607829,3219.3,3219.2,4.76552201]
[1765485733969,2.31607829,3219.5,3219.4,5.1848]
[1765485734175,0.00465896,3219.7,3219.6,5.5205]
[1765485734883,2.31993921,3220.3,3220.2,5.5205]
[1765485735983,7.78973921,3220.3,3220.2,2.6989]
[1765485736277,7.78973921,3220.3,3220.0,4.277]
[1765485736278,2.829,3220.1,3220.0,4.277]
[1765485736485,2.829,3220.1,3220.0,7.0986]
[1765485736676,2.31993921,3220.3,3220.2,5.5205]
[1765485737273,5.14893921,3220.3,3220.2,5.5205]
[1765485741081,7.78973921,3220.3,3220.2,2.6989]
[1765485741283,2.7461,3220.1,3220.0,4.2353]
[1765485741482,2.7461,3220.1,3220.0,7.0022]
[1765485741684,5.3208,3220.1,3220.0,7.0022]
[1765485741887,5.3208,3220.1,3220.0,4.2353]
[1765485742385,5.3208,3220.1,3219.6,3.2078]
[1765485744189,2.7461,3220.1,3220.0,7.0047]
[1765485744487,5.3208,3220.1,3220.0,7.0047]
[1765485744683,8.5286,3220.1,3219.5,1.5781]
[1765485744890,7.63687829,3219.8,3219.7,2.6572]
[1765485745891,2.7461,3219.6,3219.5,7.0022]
[1765485746685,5.3208,3219.6,3219.5,7.0022]
[1765485747902,2.7461,3219.3,3219.2,5.42652201]
[1765485748093,5.06217829,3219.3,3219.2,5.42652201]
[1765485748593,2.31607829,3219.3,3219.2,5.42652201]
[1765485748995,5.06217829,3219.3,3219.2,5.42652201]
[1765485750395,3.2078,3220.1,3220.0,4.3475]
[1765485750594,3.2078,3220.1,3220.0,7.0047]
[1765485751292,5.9539,3220.1,3220.0,7.0047]
[1765485751692,3.2078,3220.1,3220.0,7.0047]
[1765485752294,0.00386092,3220.3,3220.2,5.57935]
[1765485752697,3.2078,3221.1,3220.5,7.0047]
[1765485753092,3.2078,3221.1,3220.5,7.15994]
[1765485753497,3.2078,3221.1,3221.0,7.0047]
[1765485753694,3.21128091,3221.1,3221.0,7.0047]
[1765485754193,3.21128091,3221.1,3221.0,7.15991]
[1765485754402,0.00348091,3221.1,3221.0,10.36771]
[1765485756598,2.74958091,3221.1,3221.0,7.15991]
[1765485756803,2.74958091,3221.1,3220.7,0.00465896]
[1765485756804,5.3208,3220.8,3220.7,0.00465896]
[1765485757006,5.06217829,3221.0,3220.9,5.4241]
[1765485757805,2.7461,3220.8,3220.7,5.42875896]
[1765485758206,5.06217829,3221.0,3220.9,5.4241]
[1765485759105,2.31607829,3221.0,3220.9,5.4241]
[1765485759504,5.06217829,3221.0,3220.9,5.4241]
[1765485760411,2.7461,3220.8,3220.7,5.58398896]
[1765485760602,3.21128091,3221.1,3221.0,7.0047]
[1765485764112,5.95738091,3221.1,3221.0,7.0047]
[1765485764609,3.21128091,3221.1,3221.0,7.0047]
[1765485766109,0.00348091,3221.1,3221.0,7.0047]
[1765485769309,5.29768091,3221.1,3221.0,7.0047]
[1765485769513,0.00348091,3221.1,3221.0,7.0047]
[1765485769916,2.32058091,3221.1,3221.0,7.0047]
[1765485770114,0.00348091,3221.1,3221.0,7.0047]
[1765485770315,2.32058091,3221.1,3221.0,7.0047]
[1765485770616,0.00348091,3221.1,3221.0,7.0047]
[1765485771709,2.32058091,3221.1,3221.0,7.0047]
[1765485771919,0.00348091,3221.1,3221.0,7.0047]
[1765485772807,0.00348091,3221.1,3221.0,6.6611]
[1765485776425,4.8652,3220.8,3220.7,2.57075896]
[1765485776725,5.52838091,3221.1,3221.0,6.425]
[1765485776919,8.07648091,3221.1,3221.0,6.425]
[1765485777419,8.07648091,3221.1,3221.0,1.4356]
[1765485777824,8.07648091,3221.1,3221.0,4.0017]
[1765485778024,8.07648091,3221.1,3221.0,6.425]
[1765485778220,3.21128091,3221.1,3220.7,4.99405896]
[1765485778529,5.52838091,3221.1,3221.0,6.425]
[1765485779220,3.21128091,3221.1,3221.0,6.425]
[1765485779526,0.00348091,3221.1,3221.0,6.58021]
[1765485780026,0.00348091,3221.1,3221.0,9.78801]
[1765485781227,3.2078,3221.5,3221.4,4.9894]
[1765485782026,3.21105995,3221.5,3221.4,5.14459]
[1765485782226,0.00325995,3221.5,3221.4,5.14459]
[1765485783927,2.32035995,3221.5,3221.4,5.14459]
[1765485784626,4.86845995,3221.5,3221.4,2.5661]
[1765485784830,4.86845995,3221.5,3221.0,4.6434]
[1765485785628,4.86845995,3221.5,3221.0,4.79861]
[1765485786024,4.8652,3221.1,3221.0,6.58021]
[1765485787231,2.3171,3221.1,3221.0,6.58021]
[1765485787834,4.8652,3221.1,3221.0,4.15691]
[1765485788028,2.3171,3220.8,3220.7,2.57075896]
[1765485788234,7.18127829,3220.8,3220.7,4.99405896]
[1765485788636,4.63317829,3220.8,3220.7,4.99405896]
[1765485788832,4.63317829,3220.8,3220.7,5.14928896]
[1765485788833,2.31607829,3220.8,3220.7,5.14928896]
[1765485789628,4.63317829,3220.8,3220.7,5.14928896]
[1765485790032,2.31607829,3220.8,3220.7,5.14928896]
[1765485790229,2.31607829,3221.2,3221.1,2.4233]
[1765485790433,4.8652,3221.1,3221.0,1.4356]
[1765485790732,4.8652,3220.6,3220.5,1.5806]
[1765485790933,10.38907829,3220.6,3219.8,3.2078]
[1765485791233,7.18127829,3220.1,3220.0,6.57]
[1765485791440,7.18127829,3220.1,3219.8,3.2078]
[1765485791735,4.8652,3219.9,3219.8,8.1972]
[1765485791935,2.31607829,3220.1,3220.0,6.425]
[1765485792334,4.63317829,3220.1,3220.0,6.425]
[1765485793739,7.18127829,3220.1,3220.0,6.425]
[1765485793934,7.18127829,3220.1,3219.8,3.2078]
[1765485794132,4.66677829,3220.1,3220.0,5.9083]
[1765485794332,3.2078,3220.2,3220.0,5.9083]
[1765485794532,4.533,3219.9,3219.8,0.15527]
[1765485794835,4.533,3219.9,3219.8,2.50827]
[1765485795140,4.533,3219.9,3219.8,0.15527]
[1765485795739,4.533,3219.9,3219.8,2.50827]
[1765485796540,4.533,3219.9,3219.8,0.15527]
[1765485797039,4.533,3219.7,3219.6,4.50185896]
[1765485797843,2.3507,3219.7,3219.6,4.50185896]
[1765485798042,4.533,3219.7,3219.6,4.50185896]
[1765485798339,4.533,3219.7,3219.6,2.35765896]
[1765485798839,4.533,3219.7,3219.6,0.00465896]
[1765485799039,4.5058,3219.3,3219.2,0.00242201]
[1765485799429,3.2078,3219.4,3217.5,1.3789]
[1765485799430,0.6174,3218.5,3217.5,1.3789]
[1765485799628,3.3116569,3218.5,3218.4,4.4269]
[1765485799833,6.2107569,3218.5,3218.4,4.4269]
[1765485800036,3.5165,3218.5,3218.4,4.4269]
[1765485800446,3.82901495,3218.5,3218.4,0.00401203]
[1765485800641,6.52327185,3218.5,3218.4,0.00401203]
[1765485801234,1.5516,3218.1,3217.5,1.53428]
[1765485801438,0.7758,3217.6,3217.5,5.8058]
[1765485801637,3.9836,3217.6,3217.5,5.8058]
[1765485802441,3.2078,3217.6,3217.5,5.80801054]
[1765485802636,3.2078,3217.6,3216.7,4.4269]
[1765485802841,3.2078,3216.8,3216.7,4.4269]
[1765485803646,3.9566,3216.8,3216.7,4.4301397]
[1765485804034,3.2078,3216.8,3216.7,4.4301397]
[1765485804837,0.73015896,3217.1,3217.0,5.8058]
[1765485805142,0.00465896,3217.1,3217.0,5.8058]
[1765485805342,1.35965896,3217.1,3217.0,3.5682]
[1765485805537,1.35965896,3217.1,3217.0,1.3789]
[1765485805934,0.00465896,3217.1,3217.0,5.8058]
[1765485806842,1.31085896,3217.1,3217.0,1.3789]
[1765485807144,0.00465896,3217.1,3217.0,5.8058]
[1765485807344,1.28655896,3217.1,3217.0,1.3789]
[1765485807543,1.28655896,3217.1,3216.7,0.0032397]
[1765485807544,1.2576,3216.8,3216.7,0.0032397]
[1765485807742,4.4654,3216.8,3216.7,0.0032397]
[1765485808048,3.8366,3216.8,3216.7,4.4301397]
[1765485808544,3.2078,3216.8,3216.7,4.4301397]
[1765485810648,3.8123,3216.8,3216.7,4.4301397]
[1765485810836,4.3685,3216.8,3216.7,2.1925397]
[1765485811342,3.8123,3216.8,3216.7,2.1925397]
[1765485812448,4.3445,3216.8,3216.7,0.0032397]
[1765485812749,5.9020569,3216.8,3216.5,1.3789]
[1765485812950,0.5083,3216.6,3216.5,3.5682]
[1765485813140,1.0166,3216.6,3216.5,1.3789]
[1765485813547,0.9688,3216.5,3216.4,0.00465896]
[1765485813746,0.9688,3216.5,3216.4,0.00769867]
[1765485814251,3.6630569,3216.5,3216.4,0.00769867]
[1765485814448,9.6630569,3216.5,3216.4,0.00769867]
[1765485814847,0.9099,3215.6,3215.0,1.3789]
[1765485815051,4.1177,3215.6,3215.0,1.3789]
[1765485815453,4.1177,3215.6,3215.5,3.5682]
[1765485815752,4.09760318,3215.6,3215.5,3.57199423]
[1765485816051,4.09760318,3215.6,3215.5,1.38269423]
[1765485817250,4.09760318,3215.6,3215.5,0.00379423]
[1765485817453,0.7676,3215.3,3215.2,0.00465896]
[1765485818549,0.3838,3215.3,3215.2,2.19621399]
[1765485818755,3.57170318,3215.6,3215.5,5.8058]
[1765485818950,3.93200318,3215.6,3215.5,1.3789]
[1765485819355,0.6978,3215.3,3215.2,0.00691399]
[1765485819651,0.675,3214.6,3214.5,1.3789]
[1765485819856,6.5770569,3214.6,3214.5,1.3789]
[1765485820852,3.2078,3214.6,3214.5,5.80886355]
[1765485822553,3.7909,3214.6,3214.5,1.38196355]
[1765485822756,3.522,3214.6,3214.5,1.38196355]
[1765485822959,3.2078,3214.6,3214.5,5.80886355]
[1765485823155,3.7225,3214.6,3214.5,1.38196355]
[1765485823759,3.2078,3214.6,3214.5,5.80886355]
[1765485824660,4.55933036,3214.6,3214.5,1.38196355]
[1765485824960,3.4536,3214.6,3214.5,5.80886355]
[1765485825157,3.2078,3214.6,3214.5,5.80886355]
[1765485825360,4.09122167,3214.6,3214.5,5.80886355]
[1765485826052,0.00466628,3214.9,3214.8,4.4269]
[1765485827360,0.8897891,3214.9,3214.8,4.4269]
[1765485828164,1.0667891,3214.9,3214.8,4.4269]
[1765485828361,1.0667891,3214.9,3214.5,1.38196355]
[1765485828362,1.1982891,3214.9,3214.5,1.38196355]
[1765485828662,6.1650569,3214.6,3214.5,0.00306355]
[1765485828855,7.05017972,3214.6,3214.5,0.00306355]
[1765485829260,9.26923336,3214.6,3214.5,0.00306355]
[1765485829462,0.39,3214.3,3214.2,0.0031304]
[1765485829665,13.68712282,3214.3,3214.2,0.0031304]
[1765485830358,1.27512282,3214.3,3214.2,0.0031304]
[1765485830555,0.88512282,3214.3,3214.2,4.30195687]
[1765485830962,1.06762282,3214.3,3214.2,4.30195687]
[1765485831152,1.06762282,3214.3,3214.2,0.00545687]
[1765485831358,1.22802282,3214.3,3214.2,0.00545687]
[1765485831962,1.06762282,3214.3,3214.2,0.00545687]
[1765485832961,0.88512282,3214.3,3214.2,4.30195687]
[1765485833269,2.54692817,3214.3,3214.2,4.30195687]
[1765485833563,0.88512282,3214.3,3214.2,4.30195687]
[1765485834265,2.54692817,3214.3,3214.2,4.30195687]
[1765485834761,2.68492817,3214.3,3214.2,2.24375687]
[1765485835061,2.54692817,3214.3,3214.2,4.30195687]
[1765485835477,0.88512282,3214.3,3214.2,4.30195687]
[1765485835765,2.54790975,3214.3,3214.2,4.30195687]
[1765485836369,2.54877411,3214.3,3214.2,4.30195687]
[1765485837168,0.88512282,3214.3,3214.2,4.30195687]
[1765485837362,0.97842282,3214.3,3214.2,2.24375687]
[1765485837566,1.00512282,3214.3,3214.2,0.00545687]
[1765485837963,0.97842282,3214.3,3214.2,4.30195687]
[1765485838759,0.97842282,3214.3,3214.2,2.24375687]
[1765485839366,0.97842282,3214.3,3214.2,4.30195687]
[1765485840271,0.88512282,3214.3,3214.2,4.30195687]
[1765485841070,0.15556,3214.0,3213.6,3.2078]
[1765485841274,5.9020569,3213.7,3213.0,1.3789]
[1765485841470,16.07999159,3213.6,3213.5,1.314]
[1765485841773,16.50692282,3213.6,3213.5,1.314]
[1765485841962,6.87379159,3213.6,3213.5,1.314]
[1765485842167,4.09292282,3213.6,3213.5,1.31660065]
[1765485842368,6.87379159,3213.6,3213.5,1.31660065]
[1765485842671,16.50792282,3213.6,3213.5,1.31660065]
[1765485843273,16.50792282,3213.6,3213.0,1.3789]
[1765485843473,3.2078,3213.1,3213.0,1.3789]
[1765485843674,4.09292282,3213.1,3213.0,1.3789]
[1765485843873,4.09292282,3213.1,3213.0,3.6172]
[1765485844377,4.09695499,3213.1,3213.0,3.62040686]
[1765485844576,4.09695499,3213.1,3213.0,1.38210686]
[1765485844774,15.48546879,3213.1,3212.0,1.314]
[1765485844966,3.2078,3212.1,3212.0,5.6105]
[1765485845168,6.32077894,3212.1,3212.0,5.6105]
[1765485845482,4.09292282,3212.1,3212.0,5.6105]
[1765485845775,4.09292282,3212.1,3212.0,5.61395247]
[1765485846873,5.76069663,3212.1,3212.0,5.61395247]
[1765485847073,4.09292282,3212.1,3212.0,5.61395247]
[1765485849376,4.87557381,3213.0,3212.8,4.2965]
[1765485849573,3.2078,3213.0,3212.8,4.2965]
[1765485852471,0.00403217,3213.1,3212.8,4.2965]
[1765485852472,0.00403217,3213.1,3212.8,7.5043]
[1765485853372,0.00403217,3213.1,3213.0,5.6105]
[1765485853573,3.2078,3213.8,3213.7,4.2965]
[1765485854773,3.21104148,3213.8,3213.7,4.2965]
[1765485858178,0.00324148,3213.8,3213.7,4.2965]
[1765485858374,0.00466628,3214.1,3214.0,5.7234]
[1765485859373,0.00692631,3214.1,3214.0,5.7234]
[1765485860172,3.2078,3214.3,3214.2,4.3396]
[1765485860774,3.2078,3214.8,3214.7,4.3396]
[1765485861171,3.21035859,3214.8,3214.7,4.34200375]
[1765485862078,0.00255859,3214.8,3214.7,7.54980375]
[1765485862474,0.00255859,3214.8,3214.7,4.34200375]
[1765485862680,2.23085859,3214.8,3214.7,4.34200375]
[1765485862879,0.00255859,3214.8,3214.7,4.34200375]
[1765485863182,4.29195859,3214.8,3214.7,4.34200375]
[1765485863482,0.00255859,3214.8,3214.7,4.34200375]
[1765485864480,2.23085859,3214.8,3214.7,4.34200375]
[1765485864677,0.00255859,3214.8,3214.7,4.34200375]
[1765485864983,2.23085859,3214.8,3214.7,4.34200375]
[1765485865184,5.43865859,3214.8,3214.7,4.34200375]
[1765485866178,7.49975859,3214.8,3214.7,2.16160375]
[1765485866487,7.49975859,3214.8,3214.7,4.34200375]
[1765485867885,7.49975859,3214.8,3214.7,2.16160375]
[1765485868078,7.49975859,3214.8,3214.7,4.34200375]
[1765485868485,7.49975859,3214.8,3214.7,2.16160375]
[1765485869392,7.49975859,3214.8,3214.7,4.34200375]
[1765485869592,5.43865859,3214.8,3214.7,4.34200375]
[1765485871188,3.21035859,3214.8,3214.7,4.34200375]
[1765485873797,0.00466628,3215.1,3215.0,5.5876]